[Event "Titled Tuesday Blitz July 4 Late 2023"]
[White "Sargsyan, Shant"]
[Black "Sanal, Vahap"]
[WhiteFideId "13306766"]
[BlackFideId "6300545"]
[WhiteElo "2998"]
[BlackElo "2893"]
[Result "1-0"]
[Round "8"]
[TimeControl "180+2"]
[Date "2023.07.04"]
[WhiteClock "0:00:13"]
[BlackClock "0:00:01"]
[Board "11"]

1. g3 {[%clk 0:03:00]}  d5 {[%clk 0:02:57]} 2. Nf3 {[%clk 0:03:00]}  g6 {[%clk 0:02:57]} 3. Bg2 {[%clk 0:02:59]}  Bg7 {[%clk 0:02:57]} 4. O-O {[%clk 0:02:59]}  e5 {[%clk 0:02:57]} 5. d3 {[%clk 0:03:00]}  Ne7 {[%clk 0:02:57]} 6. e4 {[%clk 0:02:59]}  O-O {[%clk 0:02:57]} 7. Qe2 {[%clk 0:02:55]}  Nbc6 {[%clk 0:02:57]} 8. c3 {[%clk 0:02:55]}  Re8 {[%clk 0:02:58]} 9. b4 {[%clk 0:02:54]}  a6 {[%clk 0:02:56]} 10. a3 {[%clk 0:02:53]}  h6 {[%clk 0:02:52]} 11. Nbd2 {[%clk 0:02:51]}  g5 {[%clk 0:02:52]} 12. Bb2 {[%clk 0:02:50]}  Ng6 {[%clk 0:02:50]} 13. exd5 {[%clk 0:02:50]}  Qxd5 {[%clk 0:02:50]} 14. Nxg5 {[%clk 0:02:48]}  Qd8 {[%clk 0:02:45]} 15. Nge4 {[%clk 0:02:48]}  f5 {[%clk 0:02:35]} 16. Nc5 {[%clk 0:02:47]}  Kh7 {[%clk 0:02:36]} 17. Rfe1 {[%clk 0:02:45]}  Qf6 {[%clk 0:02:30]} 18. d4 {[%clk 0:02:45]}  e4 {[%clk 0:02:15]} 19. Nf1 {[%clk 0:02:24]}  b6 {[%clk 0:02:12]} 20. Nb3 {[%clk 0:02:24]}  Qf7 {[%clk 0:01:43]} 21. c4 {[%clk 0:02:18]}  f4 {[%clk 0:01:44]} 22. Bxe4 {[%clk 0:02:08]}  Bf5 {[%clk 0:01:43]} 23. Nfd2 {[%clk 0:01:55]}  Rad8 {[%clk 0:01:28]} 24. Qh5 {[%clk 0:01:43]}  Nce7 {[%clk 0:01:24]} 25. Nf3 {[%clk 0:01:27]}  Kg8 {[%clk 0:01:22]} 26. Rac1 {[%clk 0:01:18]}  Bxe4 {[%clk 0:01:13]} 27. Rxe4 {[%clk 0:01:19]}  fxg3 {[%clk 0:01:13]} 28. fxg3 {[%clk 0:01:16]}  Rf8 {[%clk 0:01:13]} 29. Nbd2 {[%clk 0:01:13]}  Nf5 {[%clk 0:01:09]} 30. Rce1 {[%clk 0:01:10]}  c5 {[%clk 0:01:00]} 31. Re6 {[%clk 0:01:03]}  Nfe7 {[%clk 0:00:50]} 32. bxc5 {[%clk 0:01:01]}  bxc5 {[%clk 0:00:50]} 33. Qxc5 {[%clk 0:00:52]}  Nf5 {[%clk 0:00:51]} 34. Qc6 {[%clk 0:00:40]}  Kh7 {[%clk 0:00:34]} 35. Qe4 {[%clk 0:00:39]}  Kg8 {[%clk 0:00:25]} 36. Kg2 {[%clk 0:00:36]}  Nge7 {[%clk 0:00:13]} 37. Rxe7 {[%clk 0:00:31]}  Nxe7 {[%clk 0:00:13]} 38. Qxe7 {[%clk 0:00:32]}  Qh5 {[%clk 0:00:11]} 39. Qe6+ {[%clk 0:00:27]}  Kh8 {[%clk 0:00:11]} 40. g4 {[%clk 0:00:17]}  Qa5 {[%clk 0:00:09]} 41. Qe3 {[%clk 0:00:17]}  Rb8 {[%clk 0:00:07]} 42. Bc3 {[%clk 0:00:15]}  Qxa3 {[%clk 0:00:08]} 43. Ra1 {[%clk 0:00:15]}  Qd6 {[%clk 0:00:08]} 44. d5 {[%clk 0:00:14]}  Rbe8 {[%clk 0:00:05]} 45. Bxg7+ {[%clk 0:00:14]}  Kxg7 {[%clk 0:00:06]} 46. Qd4+ {[%clk 0:00:14]}  Kh7 {[%clk 0:00:06]} 47. Qd3+ {[%clk 0:00:14]}  Kh8 {[%clk 0:00:06]} 48. c5 {[%clk 0:00:13]}  Qd7 {[%clk 0:00:04]} 49. h3 {[%clk 0:00:12]}  h5 {[%clk 0:00:04]} 50. Rxa6 {[%clk 0:00:12]}  Qg7 {[%clk 0:00:01]} 51. g5 {[%clk 0:00:10]}  Rf7 {[%clk 0:00:01]} 52. Rh6+ {[%clk 0:00:11]}  Kg8 {[%clk 0:00:01]} 53. Re6 {[%clk 0:00:11]}  Rxe6 {[%clk 0:00:01]} 54. dxe6 {[%clk 0:00:12]}  Re7 {[%clk 0:00:01]} 55. Qd8+ {[%clk 0:00:12]}  Kh7 {[%clk 0:00:02]} 56. Qd3+ {[%clk 0:00:12]}  Kg8 {[%clk 0:00:02]} 57. Qf5 {[%clk 0:00:13]}  Qb2 {[%clk 0:00:02]} 58. Qg6+ {[%clk 0:00:13]}  Kf8 {[%clk 0:00:01]} 59. Qf6+ {[%clk 0:00:13]} 1-0


[Site "https://www.chess.com"]

[Event "Titled Tuesday Blitz July 4 Late 2023"]
[White "Nasuta, Grzegorz"]
[Black "Indjic, Aleksandar"]
[WhiteFideId "1141686"]
[BlackFideId "911925"]
[WhiteElo "2725"]
[BlackElo "2971"]
[Result "0-1"]
[Round "8"]
[TimeControl "180+2"]
[Date "2023.07.04"]
[WhiteClock "0:00:00"]
[BlackClock "0:01:03"]
[Board "14"]

1. e4 {[%clk 0:02:51]}  e5 {[%clk 0:02:59]} 2. Nf3 {[%clk 0:02:51]}  Nc6 {[%clk 0:02:59]} 3. Bc4 {[%clk 0:02:51]}  Nf6 {[%clk 0:02:59]} 4. d3 {[%clk 0:02:52]}  d5 {[%clk 0:02:59]} 5. exd5 {[%clk 0:02:52]}  Nxd5 {[%clk 0:02:59]} 6. O-O {[%clk 0:02:52]}  Be7 {[%clk 0:02:59]} 7. Re1 {[%clk 0:02:51]}  f6 {[%clk 0:02:59]} 8. Nc3 {[%clk 0:02:45]}  Be6 {[%clk 0:02:57]} 9. Bb3 {[%clk 0:02:14]}  Qd7 {[%clk 0:02:55]} 10. d4 {[%clk 0:02:10]}  Nxc3 {[%clk 0:02:49]} 11. bxc3 {[%clk 0:02:10]}  O-O-O {[%clk 0:02:47]} 12. Qe2 {[%clk 0:01:47]}  Bg4 {[%clk 0:02:29]} 13. h3 {[%clk 0:01:45]}  Bxf3 {[%clk 0:02:18]} 14. Qxf3 {[%clk 0:01:46]}  Kb8 {[%clk 0:02:17]} 15. Ba4 {[%clk 0:01:44]}  Qd5 {[%clk 0:02:16]} 16. Qxd5 {[%clk 0:01:41]}  Rxd5 {[%clk 0:02:17]} 17. Rb1 {[%clk 0:01:28]}  Ka8 {[%clk 0:02:10]} 18. f4 {[%clk 0:00:49]}  Bd6 {[%clk 0:02:02]} 19. Bb3 {[%clk 0:00:25]}  Ra5 {[%clk 0:02:01]} 20. d5 {[%clk 0:00:24]}  Nd8 {[%clk 0:02:00]} 21. fxe5 {[%clk 0:00:13]}  Bxe5 {[%clk 0:01:59]} 22. c4 {[%clk 0:00:13]}  b6 {[%clk 0:01:59]} 23. Bd2 {[%clk 0:00:12]}  Rc5 {[%clk 0:01:59]} 24. Bb4 {[%clk 0:00:12]}  Nb7 {[%clk 0:02:00]} 25. Bxc5 {[%clk 0:00:12]}  Nxc5 {[%clk 0:02:01]} 26. Kf1 {[%clk 0:00:08]}  a5 {[%clk 0:02:00]} 27. c3 {[%clk 0:00:08]}  Rd8 {[%clk 0:01:53]} 28. Bc2 {[%clk 0:00:08]}  g6 {[%clk 0:01:52]} 29. Kf2 {[%clk 0:00:08]}  Rd7 {[%clk 0:01:51]} 30. Kf3 {[%clk 0:00:08]}  Bxc3 {[%clk 0:01:50]} 31. Re8+ {[%clk 0:00:08]}  Ka7 {[%clk 0:01:50]} 32. h4 {[%clk 0:00:09]}  Kb7 {[%clk 0:01:43]} 33. g4 {[%clk 0:00:09]}  c6 {[%clk 0:01:42]} 34. Rd1 {[%clk 0:00:07]}  cxd5 {[%clk 0:01:33]} 35. Rxd5 {[%clk 0:00:07]}  Rc7 {[%clk 0:01:33]} 36. h5 {[%clk 0:00:06]}  Nd7 {[%clk 0:01:26]} 37. Rh8 {[%clk 0:00:02]}  f5 {[%clk 0:01:13]} 38. gxf5 {[%clk 0:00:02]}  Bxh8 {[%clk 0:01:13]} 39. fxg6 {[%clk 0:00:01]}  hxg6 {[%clk 0:01:13]} 40. hxg6 {[%clk 0:00:02]}  Ka7 {[%clk 0:01:11]} 41. Bd3 {[%clk 0:00:02]}  Nc5 {[%clk 0:01:11]} 42. Kg4 {[%clk 0:00:02]}  Nxd3 {[%clk 0:01:11]} 43. Rxd3 {[%clk 0:00:03]}  Rxc4+ {[%clk 0:01:11]} 44. Kf5 {[%clk 0:00:04]}  Rc7 {[%clk 0:01:10]} 45. Ke6 {[%clk 0:00:04]}  b5 {[%clk 0:01:09]} 46. Rd6 {[%clk 0:00:03]}  Kb7 {[%clk 0:01:08]} 47. Rd8 {[%clk 0:00:03]}  Bg7 {[%clk 0:01:07]} 48. Rg8 {[%clk 0:00:02]}  b4 {[%clk 0:01:07]} 49. Rd8 {[%clk 0:00:02]}  Kb6 {[%clk 0:01:06]} 50. Kd5 {[%clk 0:00:02]}  Kb5 {[%clk 0:01:05]} 51. Ra8 {[%clk 0:00:01]}  Rd7+ {[%clk 0:01:03]} 52. Ke6 {[%clk 0:00:01]}  Rb7 {[%clk 0:01:03]} 53. Kd5 {[%clk 0:00:00]}  a4 {[%clk 0:01:03]} 0-1


[Site "https://www.chess.com"]

[Event "Titled Tuesday Blitz July 4 Late 2023"]
[White "Makarian, Rudik"]
[Black "Pulvett Marin, Daniel Eduardo"]
[WhiteFideId "44105681"]
[BlackFideId "3900410"]
[WhiteElo "2943"]
[BlackElo "2717"]
[Result "0-1"]
[Round "8"]
[TimeControl "180+2"]
[Date "2023.07.04"]
[WhiteClock "0:00:00"]
[BlackClock "0:01:05"]
[Board "18"]

1. d4 {[%clk 0:02:59]}  Nf6 {[%clk 0:02:59]} 2. c4 {[%clk 0:03:00]}  g6 {[%clk 0:02:58]} 3. Nf3 {[%clk 0:03:01]}  Bg7 {[%clk 0:02:59]} 4. Nc3 {[%clk 0:03:02]}  O-O {[%clk 0:02:57]} 5. e4 {[%clk 0:03:02]}  d6 {[%clk 0:02:57]} 6. Be2 {[%clk 0:03:02]}  e5 {[%clk 0:02:55]} 7. O-O {[%clk 0:02:58]}  exd4 {[%clk 0:02:55]} 8. Nxd4 {[%clk 0:02:58]}  Re8 {[%clk 0:02:56]} 9. f3 {[%clk 0:02:59]}  c6 {[%clk 0:02:56]} 10. Bg5 {[%clk 0:03:00]}  Qb6 {[%clk 0:02:52]} 11. Kh1 {[%clk 0:03:00]}  Qxb2 {[%clk 0:02:43]} 12. Na4 {[%clk 0:02:59]}  Qb4 {[%clk 0:02:37]} 13. Bd2 {[%clk 0:02:57]}  Qa3 {[%clk 0:02:35]} 14. Bc1 {[%clk 0:02:56]}  Qb4 {[%clk 0:02:34]} 15. Bd2 {[%clk 0:02:57]}  Qa3 {[%clk 0:02:34]} 16. Rb1 {[%clk 0:02:57]}  Na6 {[%clk 0:02:24]} 17. Bc1 {[%clk 0:01:10]}  Qxa2 {[%clk 0:02:15]} 18. Rb2 {[%clk 0:01:07]}  Qa1 {[%clk 0:02:05]} 19. Qc2 {[%clk 0:00:34]}  Nc5 {[%clk 0:02:04]} 20. Nxc5 {[%clk 0:00:27]}  dxc5 {[%clk 0:02:05]} 21. Nb3 {[%clk 0:00:27]}  Qa4 {[%clk 0:02:02]} 22. Ra2 {[%clk 0:00:24]}  Qb4 {[%clk 0:01:59]} 23. Ba3 {[%clk 0:00:15]}  Qb6 {[%clk 0:01:56]} 24. Bxc5 {[%clk 0:00:14]}  Qc7 {[%clk 0:01:56]} 25. Bxa7 {[%clk 0:00:11]}  b6 {[%clk 0:01:53]} 26. Rfa1 {[%clk 0:00:09]}  Nd7 {[%clk 0:01:47]} 27. Bxb6 {[%clk 0:00:06]}  Rxa2 {[%clk 0:01:46]} 28. Rxa2 {[%clk 0:00:07]}  Qxb6 {[%clk 0:01:43]} 29. c5 {[%clk 0:00:08]}  Qb4 {[%clk 0:01:43]} 30. g3 {[%clk 0:00:07]}  Qe1+ {[%clk 0:01:40]} 31. Kg2 {[%clk 0:00:07]}  h5 {[%clk 0:01:31]} 32. Ra7 {[%clk 0:00:07]}  h4 {[%clk 0:01:29]} 33. gxh4 {[%clk 0:00:04]}  Qxh4 {[%clk 0:01:29]} 34. Nd2 {[%clk 0:00:04]}  Qg5+ {[%clk 0:01:16]} 35. Kh1 {[%clk 0:00:02]}  Bd4 {[%clk 0:01:17]} 36. Qd1 {[%clk 0:00:02]}  Nxc5 {[%clk 0:01:11]} 37. Qf1 {[%clk 0:00:00]}  Bh3 {[%clk 0:01:05]} 0-1


[Site "https://www.chess.com"]

[Event "Titled Tuesday Blitz July 4 Late 2023"]
[White "Oparin, Grigoriy"]
[Black "Jaracz, Pawel"]
[WhiteFideId "24125890"]
[BlackFideId "1102222"]
[WhiteElo "2941"]
[BlackElo "2717"]
[Result "1-0"]
[Round "8"]
[TimeControl "180+2"]
[Date "2023.07.04"]
[WhiteClock "0:01:18"]
[BlackClock "0:00:01"]
[Board "19"]

1. c4 {[%clk 0:03:00]}  c6 {[%clk 0:02:56]} 2. Nf3 {[%clk 0:03:00]}  d5 {[%clk 0:02:56]} 3. g3 {[%clk 0:03:01]}  Nd7 {[%clk 0:02:54]} 4. cxd5 {[%clk 0:02:59]}  cxd5 {[%clk 0:02:54]} 5. d4 {[%clk 0:03:00]}  Nb6 {[%clk 0:02:54]} 6. Bg2 {[%clk 0:03:00]}  Bf5 {[%clk 0:02:54]} 7. O-O {[%clk 0:03:00]}  e6 {[%clk 0:02:54]} 8. Nc3 {[%clk 0:03:00]}  Nf6 {[%clk 0:02:54]} 9. Nh4 {[%clk 0:03:00]}  Bg6 {[%clk 0:02:43]} 10. Nxg6 {[%clk 0:02:55]}  hxg6 {[%clk 0:02:43]} 11. e4 {[%clk 0:02:55]}  dxe4 {[%clk 0:02:43]} 12. Nxe4 {[%clk 0:02:56]}  Nfd5 {[%clk 0:02:38]} 13. a4 {[%clk 0:02:52]}  a5 {[%clk 0:02:24]} 14. Qd3 {[%clk 0:02:47]}  Bb4 {[%clk 0:01:50]} 15. Nc5 {[%clk 0:02:43]}  O-O {[%clk 0:01:48]} 16. Nxb7 {[%clk 0:02:39]}  Qe7 {[%clk 0:01:49]} 17. Nc5 {[%clk 0:02:39]}  Bxc5 {[%clk 0:01:48]} 18. dxc5 {[%clk 0:02:40]}  Qxc5 {[%clk 0:01:49]} 19. Bd2 {[%clk 0:02:37]}  Qc4 {[%clk 0:01:35]} 20. Qxc4 {[%clk 0:02:00]}  Nxc4 {[%clk 0:01:36]} 21. Bg5 {[%clk 0:02:01]}  Rab8 {[%clk 0:01:32]} 22. Rfc1 {[%clk 0:01:58]}  Nxb2 {[%clk 0:01:28]} 23. Rc5 {[%clk 0:01:53]}  f6 {[%clk 0:01:04]} 24. Bd2 {[%clk 0:01:51]}  Nd3 {[%clk 0:01:00]} 25. Rxa5 {[%clk 0:01:47]}  Rb2 {[%clk 0:01:00]} 26. Bxd5 {[%clk 0:01:41]}  exd5 {[%clk 0:00:58]} 27. Be3 {[%clk 0:01:41]}  Nb4 {[%clk 0:00:46]} 28. Rb5 {[%clk 0:01:40]}  Ra8 {[%clk 0:00:13]} 29. a5 {[%clk 0:01:34]}  Ra6 {[%clk 0:00:07]} 30. Bd4 {[%clk 0:01:30]}  Rb3 {[%clk 0:00:05]} 31. Rc1 {[%clk 0:01:18]}  Nd3 {[%clk 0:00:04]} 32. Rc8+ {[%clk 0:01:17]}  Kh7 {[%clk 0:00:01]} 33. Rxb3 {[%clk 0:01:18]} 1-0


[Site "https://www.chess.com"]

[Event "Titled Tuesday Blitz July 4 Late 2023"]
[White "Keymer, Vincent"]
[Black "Matinian, Nikita"]
[WhiteFideId "12940690"]
[BlackFideId "24129100"]
[WhiteElo "2937"]
[BlackElo "2691"]
[Result "1-0"]
[Round "8"]
[TimeControl "180+2"]
[Date "2023.07.04"]
[WhiteClock "0:00:38"]
[BlackClock "0:00:00"]
[Board "20"]

1. a3 {[%clk 0:03:00]}  e5 {[%clk 0:02:59]} 2. c4 {[%clk 0:03:01]}  g6 {[%clk 0:02:56]} 3. b4 {[%clk 0:02:59]}  Bg7 {[%clk 0:02:57]} 4. Bb2 {[%clk 0:03:00]}  c6 {[%clk 0:02:51]} 5. f4 {[%clk 0:02:32]}  d6 {[%clk 0:02:32]} 6. Nf3 {[%clk 0:02:30]}  Bg4 {[%clk 0:02:27]} 7. g3 {[%clk 0:02:12]}  Bxf3 {[%clk 0:02:18]} 8. exf3 {[%clk 0:02:10]}  Nd7 {[%clk 0:02:18]} 9. Bh3 {[%clk 0:02:08]}  f5 {[%clk 0:02:14]} 10. O-O {[%clk 0:02:05]}  Ngf6 {[%clk 0:02:15]} 11. fxe5 {[%clk 0:02:00]}  dxe5 {[%clk 0:02:03]} 12. d4 {[%clk 0:01:55]}  e4 {[%clk 0:01:51]} 13. Nc3 {[%clk 0:01:50]}  exf3 {[%clk 0:01:49]} 14. Qxf3 {[%clk 0:01:46]}  O-O {[%clk 0:01:46]} 15. c5 {[%clk 0:01:38]}  Ng4 {[%clk 0:01:33]} 16. Rad1 {[%clk 0:01:31]}  Ndf6 {[%clk 0:01:29]} 17. Bc1 {[%clk 0:01:09]}  h5 {[%clk 0:01:17]} 18. Bg2 {[%clk 0:01:06]}  Qe7 {[%clk 0:00:41]} 19. d5 {[%clk 0:01:00]}  cxd5 {[%clk 0:00:38]} 20. Nxd5 {[%clk 0:01:00]}  Nxd5 {[%clk 0:00:34]} 21. Qxd5+ {[%clk 0:01:00]}  Rf7 {[%clk 0:00:31]} 22. Rfe1 {[%clk 0:00:55]}  Qf8 {[%clk 0:00:19]} 23. Qc4 {[%clk 0:00:54]}  Kh7 {[%clk 0:00:18]} 24. Bf4 {[%clk 0:00:48]}  Re8 {[%clk 0:00:13]} 25. Bd6 {[%clk 0:00:40]}  Rxe1+ {[%clk 0:00:11]} 26. Rxe1 {[%clk 0:00:41]}  Qg8 {[%clk 0:00:10]} 27. Bd5 {[%clk 0:00:40]}  Nh6 {[%clk 0:00:00]} 28. Bf4 {[%clk 0:00:38]} 1-0


[Site "https://www.chess.com"]

[Event "Titled Tuesday Blitz July 4 Late 2023"]
[White "Rosen, Eric"]
[Black "Dardha, Daniel"]
[WhiteFideId "2032562"]
[BlackFideId "240990"]
[WhiteElo "2678"]
[BlackElo "2876"]
[Result "1-0"]
[Round "8"]
[TimeControl "180+2"]
[Date "2023.07.04"]
[WhiteClock "0:00:12"]
[BlackClock "0:00:53"]
[Board "22"]

1. d4 {[%clk 0:03:00]}  d5 {[%clk 0:02:58]} 2. Bf4 {[%clk 0:03:01]}  Bf5 {[%clk 0:02:57]} 3. c4 {[%clk 0:03:00]}  e6 {[%clk 0:02:57]} 4. Nc3 {[%clk 0:03:00]}  Nf6 {[%clk 0:02:56]} 5. Qb3 {[%clk 0:02:55]}  Nc6 {[%clk 0:02:54]} 6. e3 {[%clk 0:02:49]}  Na5 {[%clk 0:02:45]} 7. Qa4+ {[%clk 0:02:46]}  c6 {[%clk 0:02:45]} 8. cxd5 {[%clk 0:02:43]}  exd5 {[%clk 0:02:46]} 9. Nf3 {[%clk 0:02:38]}  b5 {[%clk 0:02:43]} 10. Bxb5 {[%clk 0:02:04]}  cxb5 {[%clk 0:02:41]} 11. Nxb5 {[%clk 0:02:04]}  Bd7 {[%clk 0:02:39]} 12. Bc7 {[%clk 0:02:03]}  a6 {[%clk 0:01:59]} 13. Bxd8 {[%clk 0:01:48]}  axb5 {[%clk 0:01:55]} 14. Qxa5 {[%clk 0:01:43]}  Rxa5 {[%clk 0:01:55]} 15. Bxa5 {[%clk 0:01:44]}  Bd6 {[%clk 0:01:56]} 16. Ne5 {[%clk 0:01:35]}  Bf5 {[%clk 0:01:55]} 17. a3 {[%clk 0:01:21]}  Nd7 {[%clk 0:01:47]} 18. Nxd7 {[%clk 0:01:16]}  Kxd7 {[%clk 0:01:48]} 19. Rc1 {[%clk 0:01:16]}  Bd3 {[%clk 0:01:41]} 20. Kd2 {[%clk 0:01:13]}  Bc4 {[%clk 0:01:42]} 21. Bb4 {[%clk 0:01:14]}  f5 {[%clk 0:01:32]} 22. Rc3 {[%clk 0:01:11]}  Ra8 {[%clk 0:01:19]} 23. Rhc1 {[%clk 0:00:43]}  Bxb4 {[%clk 0:01:16]} 24. axb4 {[%clk 0:00:40]}  Ra2 {[%clk 0:01:17]} 25. Rb1 {[%clk 0:00:27]}  Ra4 {[%clk 0:01:06]} 26. b3 {[%clk 0:00:20]}  Rxb4 {[%clk 0:01:06]} 27. Kc2 {[%clk 0:00:17]}  Be2 {[%clk 0:01:04]} 28. Rc5 {[%clk 0:00:12]}  Bd3+ {[%clk 0:00:53]} 29. Kxd3 {[%clk 0:00:12]} 1-0


[Site "https://www.chess.com"]

[Event "Titled Tuesday Blitz July 4 Late 2023"]
[White "Hilary46"]
[Black "Kantor, Gergely"]
[BlackFideId "751499"]
[WhiteElo "2646"]
[BlackElo "2816"]
[Result "0-1"]
[Round "8"]
[TimeControl "180+2"]
[Date "2023.07.04"]
[WhiteClock "0:00:18"]
[BlackClock "0:00:20"]
[Board "25"]

1. e4 {[%clk 0:02:57]}  e6 {[%clk 0:03:00]} 2. d4 {[%clk 0:02:56]}  d5 {[%clk 0:03:01]} 3. Nc3 {[%clk 0:02:57]}  Bb4 {[%clk 0:03:00]} 4. e5 {[%clk 0:02:57]}  c5 {[%clk 0:02:59]} 5. a3 {[%clk 0:02:57]}  Bxc3+ {[%clk 0:02:59]} 6. bxc3 {[%clk 0:02:58]}  Nc6 {[%clk 0:02:59]} 7. Nf3 {[%clk 0:02:57]}  Nge7 {[%clk 0:02:58]} 8. a4 {[%clk 0:02:57]}  Qa5 {[%clk 0:02:57]} 9. Qd2 {[%clk 0:02:57]}  b6 {[%clk 0:02:54]} 10. Bd3 {[%clk 0:02:50]}  Ba6 {[%clk 0:02:54]} 11. O-O {[%clk 0:02:50]}  Bxd3 {[%clk 0:02:53]} 12. Qxd3 {[%clk 0:02:44]}  Rc8 {[%clk 0:02:43]} 13. dxc5 {[%clk 0:02:38]}  bxc5 {[%clk 0:02:39]} 14. c4 {[%clk 0:02:17]}  d4 {[%clk 0:02:06]} 15. Bd2 {[%clk 0:02:12]}  Qc7 {[%clk 0:02:06]} 16. Rfe1 {[%clk 0:02:13]}  Ng6 {[%clk 0:02:06]} 17. Qe4 {[%clk 0:02:06]}  O-O {[%clk 0:01:57]} 18. h4 {[%clk 0:02:06]}  h6 {[%clk 0:01:55]} 19. Qg4 {[%clk 0:01:57]}  Ncxe5 {[%clk 0:01:50]} 20. Nxe5 {[%clk 0:01:55]}  Nxe5 {[%clk 0:01:50]} 21. Qg3 {[%clk 0:01:52]}  Ng6 {[%clk 0:01:34]} 22. Qg4 {[%clk 0:01:52]}  Kh7 {[%clk 0:01:28]} 23. h5 {[%clk 0:01:51]}  Ne7 {[%clk 0:01:28]} 24. Bf4 {[%clk 0:01:50]}  Qc6 {[%clk 0:01:26]} 25. Be5 {[%clk 0:01:47]}  f6 {[%clk 0:01:21]} 26. Bf4 {[%clk 0:01:43]}  e5 {[%clk 0:01:20]} 27. Bd2 {[%clk 0:01:43]}  f5 {[%clk 0:01:17]} 28. Qh4 {[%clk 0:01:43]}  Qf6 {[%clk 0:01:17]} 29. Qh3 {[%clk 0:01:42]}  f4 {[%clk 0:01:11]} 30. Rab1 {[%clk 0:01:39]}  Nf5 {[%clk 0:01:01]} 31. Rb7 {[%clk 0:01:35]}  Nd6 {[%clk 0:00:35]} 32. Rxa7 {[%clk 0:01:29]}  e4 {[%clk 0:00:34]} 33. Qg4 {[%clk 0:01:13]}  e3 {[%clk 0:00:29]} 34. Bc1 {[%clk 0:01:14]}  Nxc4 {[%clk 0:00:24]} 35. Rf1 {[%clk 0:00:43]}  Ne5 {[%clk 0:00:23]} 36. Qh3 {[%clk 0:00:38]}  Qg5 {[%clk 0:00:22]} 37. fxe3 {[%clk 0:00:36]}  fxe3 {[%clk 0:00:22]} 38. Rxf8 {[%clk 0:00:35]}  Rxf8 {[%clk 0:00:22]} 39. a5 {[%clk 0:00:29]}  Nf3+ {[%clk 0:00:21]} 40. Kh1 {[%clk 0:00:18]}  e2 {[%clk 0:00:20]} 0-1


[Site "https://www.chess.com"]

[Event "Titled Tuesday Blitz July 4 Late 2023"]
[White "Vovk, Orest"]
[Black "Talibov, Shiroghlan"]
[WhiteFideId "14113490"]
[BlackFideId "13429078"]
[WhiteElo "2596"]
[BlackElo "2812"]
[Result "0-1"]
[Round "8"]
[TimeControl "180+2"]
[Date "2023.07.04"]
[WhiteClock "0:00:00"]
[BlackClock "0:01:05"]
[Board "26"]

1. g4 {[%clk 0:03:00]}  h5 {[%clk 0:02:53]} 2. g5 {[%clk 0:03:01]}  e5 {[%clk 0:02:52]} 3. d4 {[%clk 0:02:58]}  exd4 {[%clk 0:02:52]} 4. g6 {[%clk 0:02:56]}  fxg6 {[%clk 0:02:51]} 5. Qd3 {[%clk 0:02:55]}  Qf6 {[%clk 0:02:50]} 6. Nf3 {[%clk 0:02:55]}  Nc6 {[%clk 0:02:49]} 7. Rg1 {[%clk 0:02:47]}  Nge7 {[%clk 0:02:46]} 8. Bh3 {[%clk 0:02:43]}  Nf5 {[%clk 0:02:36]} 9. Bg5 {[%clk 0:02:37]}  Qf7 {[%clk 0:02:34]} 10. Qe4+ {[%clk 0:02:18]}  Be7 {[%clk 0:02:33]} 11. Qf4 {[%clk 0:01:55]}  d6 {[%clk 0:02:29]} 12. Nbd2 {[%clk 0:01:50]}  Bd7 {[%clk 0:02:27]} 13. Nb3 {[%clk 0:01:48]}  O-O-O {[%clk 0:02:26]} 14. O-O-O {[%clk 0:01:48]}  Bf6 {[%clk 0:02:26]} 15. Bxf6 {[%clk 0:01:36]}  gxf6 {[%clk 0:02:25]} 16. Bxf5 {[%clk 0:01:25]}  Bxf5 {[%clk 0:02:24]} 17. Nfxd4 {[%clk 0:01:25]}  Nxd4 {[%clk 0:02:23]} 18. Qxd4 {[%clk 0:01:25]}  Kb8 {[%clk 0:02:22]} 19. Qb4 {[%clk 0:01:20]}  c5 {[%clk 0:02:05]} 20. Qb5 {[%clk 0:01:13]}  a6 {[%clk 0:02:00]} 21. Qb6 {[%clk 0:01:01]}  Qc7 {[%clk 0:02:00]} 22. Qxc7+ {[%clk 0:00:58]}  Kxc7 {[%clk 0:02:00]} 23. f3 {[%clk 0:00:59]}  g5 {[%clk 0:02:00]} 24. e4 {[%clk 0:00:56]}  Be6 {[%clk 0:02:01]} 25. Nd2 {[%clk 0:00:51]}  h4 {[%clk 0:02:00]} 26. Nf1 {[%clk 0:00:49]}  d5 {[%clk 0:01:59]} 27. Ne3 {[%clk 0:00:42]}  dxe4 {[%clk 0:01:59]} 28. fxe4 {[%clk 0:00:43]}  Rxd1+ {[%clk 0:01:58]} 29. Kxd1 {[%clk 0:00:38]}  Rd8+ {[%clk 0:01:52]} 30. Ke2 {[%clk 0:00:37]}  Kd6 {[%clk 0:01:50]} 31. Rd1+ {[%clk 0:00:25]}  Ke7 {[%clk 0:01:49]} 32. Rg1 {[%clk 0:00:14]}  Rg8 {[%clk 0:01:37]} 33. c4 {[%clk 0:00:09]}  Kd6 {[%clk 0:01:37]} 34. Nd5 {[%clk 0:00:05]}  Ke5 {[%clk 0:01:36]} 35. Ke3 {[%clk 0:00:05]}  b5 {[%clk 0:01:35]} 36. b3 {[%clk 0:00:04]}  bxc4 {[%clk 0:01:35]} 37. bxc4 {[%clk 0:00:05]}  Rb8 {[%clk 0:01:34]} 38. Rf1 {[%clk 0:00:05]}  Rb2 {[%clk 0:01:22]} 39. Nxf6 {[%clk 0:00:03]}  Rxh2 {[%clk 0:01:21]} 40. Nd5 {[%clk 0:00:01]}  Rh3+ {[%clk 0:01:21]} 41. Kd2 {[%clk 0:00:02]}  Rh2+ {[%clk 0:01:16]} 42. Kd3 {[%clk 0:00:02]}  Rxa2 {[%clk 0:01:14]} 43. Rf8 {[%clk 0:00:02]}  h3 {[%clk 0:01:13]} 44. Rh8 {[%clk 0:00:01]}  h2 {[%clk 0:01:10]} 45. Ne7 {[%clk 0:00:02]}  Kf4 {[%clk 0:01:05]} 46. Ng6+ {[%clk 0:00:00]}  Kg3 {[%clk 0:01:05]} 0-1


[Site "https://www.chess.com"]